fUSD/lending_fUSD_20250602
["ID","MTS","AMOUNT","RATE_DAILY","PERIOD"]
[363806524,1748879442250,-420.0,0.00019863,2]
[363806526,1748879442260,-420.0,0.00019863,2]
[363806528,1748879442270,-420.0,0.00019863,2]
[363806530,1748879442279,-993.96,0.00019863,2]
[363806532,1748879442289,-783.21,0.00019863,2]
[363806534,1748879442300,-420.0,0.00019863,2]
[363806536,1748879442309,-3139.81875585,0.00019881,2]
[363806538,1748879442320,-158.87648605,0.00019899,2]
[363806540,1748879442331,-2039.91300036,0.00019899,2]
[363806542,1748879442340,-2039.91300029,0.00019899,2]
[363806544,1748879442350,-2039.91300029,0.00019899,2]
[363806547,1748879442361,-2039.91300029,0.00019899,2]
[363806549,1748879442371,-2039.91300029,0.00019899,2]
[363806551,1748879442381,-2039.91300029,0.000199,2]
[363806553,1748879442391,-2039.91300029,0.000199,2]
[363806555,1748879442401,-2039.91300029,0.000199,2]
[363806557,1748879442413,-2039.91300029,0.000199,2]
[363806559,1748879442422,-1335.601091,0.000199,2]
[363806561,1748879442432,-3159.1871,0.000199,2]
[363806563,1748879442442,-167.66560057,0.000199,2]
[363806565,1748879442452,-977.06887776,0.000199,2]
[363806567,1748879442462,-162.38624171,0.000199,2]
[363806569,1748879442472,-374.39218693,0.000199,2]
[363806571,1748879442483,-2733.12590411,0.000199,2]
[363806573,1748879442494,-2039.91300029,0.000199,2]
[363806575,1748879442505,-3255.99204981,0.00019936,2]
[363806577,1748879442514,-300.0,0.0001996,2]
[363806579,1748879442524,-463.67652228,0.00019973,2]
[363806581,1748879442534,-200.43604574,0.00019973,2]
[363806583,1748879442544,-500.0,0.00019973,2]
[363806585,1748879442554,-500.0,0.00019973,2]
[363806587,1748879442564,-302.33819489,0.00019973,2]
[363806589,1748879442574,-500.0,0.00019973,2]
[363806591,1748879442584,-517.07765139,0.00019973,2]
[363806593,1748879442594,-500.0,0.00019973,2]
[363806595,1748879442603,-500.0,0.00019973,2]
[363806597,1748879442613,-500.0,0.00019973,2]
[363806599,1748879442623,-500.0,0.00019973,2]
[363806601,1748879442632,-203.0,0.00019975,2]
[363806603,1748879442642,-263.51654581,0.0001999,2]
[363806605,1748879442655,-623.75424395,0.00019991,2]
[363806607,1748879442666,-15694.9484257,0.00019995,2]
[363806609,1748879442676,-666.0,0.00019999,2]
[363806611,1748879442685,-666.0,0.00019999,2]
[363806613,1748879442695,-300.0,0.00019999,2]
[363806615,1748879442705,-300.0,0.00019999,2]
[363806617,1748879442715,-300.0,0.00019999,2]
[363806619,1748879442725,-300.0,0.00019999,2]
[363806621,1748879442734,-300.0,0.00019999,2]
[363806623,1748879442744,-1000.0,0.00019999,2]
[363806625,1748879442754,-2000.0,0.00019999,2]
[363806627,1748879442763,-610.29,0.00019999,2]
[363806629,1748879442772,-5127.14929788,0.00019999,2]
[363806631,1748879442782,-896.89,0.00019999,2]
[363806633,1748879442791,-896.89,0.00019999,2]
[363806635,1748879442802,-896.89,0.00019999,2]
[363806637,1748879442812,-896.89,0.00019999,2]
[363806639,1748879442823,-896.89,0.00019999,2]
[363806641,1748879442832,-896.89,0.00019999,2]
[363806643,1748879442842,-896.89,0.00019999,2]
[363806645,1748879442852,-896.89,0.00019999,2]
[363806647,1748879442862,-896.89,0.00019999,2]
[363806649,1748879442872,-896.89,0.00019999,2]
[363806651,1748879442882,-896.89,0.00019999,2]
[363806653,1748879442891,-896.89,0.00019999,2]
[363806655,1748879442901,-896.89,0.00019999,2]
[363806657,1748879442911,-896.89,0.00019999,2]
[363806660,1748879442924,-896.89,0.00019999,2]
[363806662,1748879442934,-896.89,0.00019999,2]
[363806664,1748879442943,-896.89,0.00019999,2]
[363806665,1748879442953,-896.89,0.00019999,2]
[363806668,1748879442964,-896.89,0.00019999,2]
[363806671,1748879442974,-896.89,0.00019999,2]
[363806675,1748879442983,-896.89,0.00019999,2]
[363806678,1748879442992,-896.89,0.00019999,2]
[363806680,1748879443002,-896.89,0.00019999,2]
[363806682,1748879443011,-896.98841982,0.00019999,2]
[363806684,1748879443021,-500.0,0.00019999,2]
[363806686,1748879443030,-500.0,0.00019999,2]
[363806688,1748879443040,-500.0,0.00019999,2]
[363806690,1748879443050,-500.0,0.00019999,2]
[363806692,1748879443059,-500.0,0.00019999,2]
[363806695,1748879443069,-500.0,0.00019999,2]
[363806697,1748879443080,-500.0,0.00019999,2]
[363806698,1748879443091,-524.69566948,0.00019999,2]
[363806700,1748879443101,-500.0,0.00019999,2]
[363806703,1748879443110,-500.0,0.00019999,2]
[363806706,1748879443121,-500.0,0.00019999,2]
[363806708,1748879443131,-500.0,0.00019999,2]
[363806710,1748879443141,-500.0,0.00019999,2]
[363806714,1748879443151,-500.0,0.00019999,2]
[363806715,1748879443161,-500.0,0.00019999,2]
[363806718,1748879443170,-500.0,0.00019999,2]
[363806719,1748879443180,-500.0,0.00019999,2]
[363806721,1748879443189,-500.0,0.00019999,2]
[363806723,1748879443201,-500.0,0.00019999,2]
[363806725,1748879443210,-500.0,0.00019999,2]
[363806727,1748879443220,-500.0,0.00019999,2]
[363806730,1748879443231,-504.12947133,0.00019999,2]
[363806732,1748879443240,-370.03932462,0.00019999,2]
[363806734,1748879443250,-201.57057131,0.00019999,2]
[363806735,1748879443260,-500.0,0.00019999,2]
[363806738,1748879443269,-616.60629072,0.00019999,2]
[363806739,1748879443278,-607.77233399,0.00019999,2]
[363806741,1748879443288,-786.35185312,0.00019999,2]
[363806744,1748879443299,-500.0,0.00019999,2]
[363806745,1748879443309,-179.6264928,0.00019999,2]
[363806747,1748879443319,-786.35185312,0.00019999,2]
[363806749,1748879443329,-786.35185312,0.00019999,2]
[363806752,1748879443340,-500.0,0.00019999,2]
[363806753,1748879443352,-786.35185312,0.00019999,2]
[363806756,1748879443361,-786.35185312,0.00019999,2]
[363806757,1748879443371,-500.0,0.00019999,2]
[363806760,1748879443380,-500.0,0.00019999,2]
[363806761,1748879443390,-500.0,0.00019999,2]
[363806763,1748879443399,-398.27284414,0.00019999,2]
[363806765,1748879443409,-786.35185312,0.00019999,2]
[363806767,1748879443418,-786.35185312,0.00019999,2]
[363806769,1748879443428,-786.35185312,0.00019999,2]
[363806772,1748879443438,-500.0,0.00019999,2]
[363806774,1748879443448,-786.35185312,0.00019999,2]
[363806775,1748879443458,-786.35185312,0.00019999,2]
[363806778,1748879443467,-786.35185312,0.00019999,2]
[363806780,1748879443477,-786.35185312,0.00019999,2]
[363806782,1748879443487,-500.0,0.00019999,2]
[363806784,1748879443497,-786.35185312,0.00019999,2]
[363806787,1748879443507,-786.35185312,0.00019999,2]
[363806790,1748879443516,-786.35185312,0.00019999,2]
[363806793,1748879443526,-500.0,0.00019999,2]
[363806796,1748879443535,-500.0,0.00019999,2]
[363806799,1748879443546,-500.0,0.00019999,2]
[363806802,1748879443556,-351.25276232,0.00019999,2]
[363806804,1748879443566,-500.0,0.00019999,2]
[363806806,1748879443576,-500.0,0.00019999,2]
[363806808,1748879443586,-227.41336413,0.00019999,2]
[363806810,1748879443595,-500.0,0.00019999,2]
[363806812,1748879443605,-500.0,0.00019999,2]
[363806814,1748879443615,-500.0,0.00019999,2]
[363806816,1748879443632,-500.0,0.00019999,2]
[363806818,1748879443642,-453.90877018,0.00019999,2]
[363806820,1748879443651,-500.0,0.00019999,2]
[363806821,1748879443660,-500.0,0.00019999,2]
[363806823,1748879443670,-500.0,0.00019999,2]
[363806825,1748879443681,-500.0,0.00019999,2]
[363806827,1748879443690,-500.0,0.00019999,2]
[363806830,1748879443700,-500.0,0.00019999,2]
[363806831,1748879443709,-500.0,0.00019999,2]
[363806833,1748879443719,-500.0,0.00019999,2]
[363806835,1748879443729,-500.0,0.00019999,2]
[363806838,1748879443747,-500.0,0.00019999,2]
[363806841,1748879443760,-545.21972527,0.00019999,2]
[363806843,1748879443771,-500.0,0.00019999,2]
[363806845,1748879443781,-500.0,0.00019999,2]
[363806847,1748879443792,-500.0,0.00019999,2]
[363806849,1748879443803,-630.92667445,0.00019999,2]
[363806851,1748879443814,-558.20947953,0.00019999,2]
[363806853,1748879443824,-500.0,0.00019999,2]
[363806855,1748879443835,-500.0,0.00019999,2]
[363806857,1748879443846,-500.0,0.00019999,2]
[363806859,1748879443856,-500.0,0.00019999,2]
[363806861,1748879443866,-500.0,0.00019999,2]
[363806863,1748879443875,-500.0,0.00019999,2]
[363806865,1748879443886,-500.0,0.00019999,2]
[363806867,1748879443896,-500.0,0.00019999,2]
[363806869,1748879443906,-500.0,0.00019999,2]
[363806871,1748879443918,-500.0,0.00019999,2]
[363806874,1748879443929,-500.0,0.00019999,2]
[363806876,1748879443939,-500.0,0.00019999,2]
[363806878,1748879443949,-500.0,0.00019999,2]
[363806880,1748879443959,-500.0,0.00019999,2]
[363806882,1748879443969,-500.0,0.00019999,2]
[363806884,1748879443979,-500.0,0.00019999,2]
[363806886,1748879443989,-500.0,0.00019999,2]
[363806888,1748879444001,-500.0,0.00019999,2]
[363806890,1748879444013,-500.0,0.00019999,2]
[363806892,1748879444022,-1030.0,0.00019999,2]
[363806894,1748879444031,-1337.24377216,0.0002,2]
[363806896,1748879444041,-1377142.13033322,0.0002,2]
[363806898,1748879444052,-2245323.69139049,0.0002,2]
[363806900,1748879444062,-2516.2868832,0.0002,2]
[363806902,1748879444072,-92304.05739541,0.0002,2]
[363806904,1748879444091,-302.35680735,0.0002,2]
[363806906,1748879444101,-10000.0,0.0002,2]
[363806908,1748879444111,-4320.50572605,0.0002,2]
[363806910,1748879444121,-20259.59278796,0.0002,4]
[363806912,1748879444131,-148767.53634328,0.0002,2]
[363806914,1748879444141,-3000.0,0.0002,2]
[363806916,1748879444151,-151.0,0.0002,2]
[363806918,1748879444161,-151.0,0.0002,2]
[363806920,1748879444170,-151.0,0.0002,2]
[363806922,1748879444179,-178.4134,0.0002,2]
[363806924,1748879444188,-178.4134,0.0002,2]
[363806926,1748879444198,-151.858811,0.0002,2]
[363806928,1748879444208,-151.0,0.0002,2]
[363806930,1748879444218,-151.0,0.0002,2]
[363806932,1748879444227,-151.0,0.0002,2]
[363806935,1748879444237,-151.0,0.0002,2]
[363806937,1748879444246,-151.0,0.0002,2]
[363806939,1748879444257,-151.0,0.0002,2]
[363806941,1748879444268,-151.0,0.0002,2]
[363806951,1748879444277,-153.737635,0.0002,2]
[363806953,1748879444366,-151.0,0.0002,2]
[363806955,1748879444375,-151.0,0.0002,2]
[363806957,1748879444385,-151.0,0.0002,2]
[363806959,1748879444395,-153.070354,0.0002,2]
[363806961,1748879444405,-151.0,0.0002,2]
[363806963,1748879444414,-151.0,0.0002,2]
[363806965,1748879444424,-168.505625,0.0002,2]
[363806967,1748879444433,-168.505625,0.0002,2]
[363806969,1748879444442,-168.505625,0.0002,2]
[363806971,1748879444452,-168.505625,0.0002,2]
[363806973,1748879444462,-151.0,0.0002,2]
[363806975,1748879444471,-151.0,0.0002,2]
[363806977,1748879444480,-151.611904,0.0002,2]
[363806979,1748879444491,-151.0,0.0002,2]
[363806981,1748879444500,-151.0,0.0002,2]
[363806983,1748879444510,-151.0,0.0002,2]
[363806985,1748879444519,-151.0,0.0002,2]
[363806987,1748879444528,-151.0,0.0002,2]
[363806989,1748879444537,-151.0,0.0002,2]
[363806991,1748879444547,-151.0,0.0002,2]
[363806993,1748879444557,-152.950133,0.0002,2]
[363806995,1748879444567,-151.0,0.0002,2]
[363806997,1748879444576,-151.0,0.0002,2]
[363806999,1748879444585,-152.163341,0.0002,2]
[363807001,1748879444594,-500.0,0.0002,4]
[363807003,1748879444603,-151.0,0.0002,2]
[363807005,1748879444613,-210.820258,0.0002,2]
[363807007,1748879444622,-4873.65868452,0.0002,2]
[363807009,1748879444631,-151.0,0.0002,2]
[363807011,1748879444641,-288.228176,0.0002,2]
[363807013,1748879444651,-152.47132993,0.0002,2]
[363807015,1748879444661,-2270.4081254,0.0002,2]
[363807017,1748879444670,-1300.11796472,0.0002,2]
[363807019,1748879444679,-154.524376,0.0002,2]
[363807021,1748879444690,-154.524376,0.0002,2]
[363807023,1748879444699,-2473779.40775475,0.0002,2]
[363807047,1748879444935,-471.56598198,0.0002,2]
[363807067,1748879445117,-865531.63656935,0.0002,2]
[363807069,1748879445127,-321332.96435559,0.0002,2]
[363807071,1748879445136,-24453.00369355,0.0002,2]
[363807073,1748879445148,-882.0,0.0002,2]
[363807075,1748879445161,-277.51052236,0.0002,2]
[363807078,1748879445172,-21619.64134486,0.0002,2]
[363807080,1748879445183,-18326.88,0.0002,2]
[363807082,1748879445194,-6637.97385699,0.0002,2]
[363807084,1748879445203,-1500.0,0.0002,2]
[363807086,1748879445214,-1500.0,0.0002,2]
[363807088,1748879445222,-1500.0,0.0002,2]
[363807090,1748879445232,-1500.0,0.0002,2]
[363807092,1748879445241,-308.66161582,0.0002,2]
[363807095,1748879445260,-1191.33838418,0.0002,2]
[363807097,1748879445269,-1500.0,0.0002,2]
[363807099,1748879445279,-1500.0,0.0002,2]
[363807101,1748879445288,-1500.0,0.0002,2]
[363807103,1748879445298,-1500.0,0.0002,2]
[363807105,1748879445307,-820.35,0.0002,2]
[363807107,1748879445316,-1500.0,0.0002,2]
[363807109,1748879445326,-796.33,0.0002,2]
[363807111,1748879445335,-420.0,0.0002,2]
[363807113,1748879445345,-601.15,0.0002,2]
[363807115,1748879445354,-420.0,0.0002,2]
[363807117,1748879445365,-2342.3,0.0002,2]
[363807119,1748879445374,-420.0,0.0002,2]
[363807120,1748879445383,-593.04,0.0002,2]
[363807122,1748879445393,-420.0,0.0002,2]
[363807125,1748879445403,-501.46,0.0002,2]
[363807126,1748879445414,-546.66,0.0002,2]
[363807128,1748879445424,-632.6,0.0002,2]
[363807130,1748879445434,-550.78,0.0002,2]
[363807133,1748879445443,-420.0,0.0002,2]
[363807134,1748879445453,-1932.31,0.0002,2]
[363807135,1748879445463,-499.35368165,0.0002,2]
[363807136,1748879445472,-420.0,0.0002,2]
[363807137,1748879445482,-420.0,0.0002,2]
[363807138,1748879445491,-420.0,0.0002,2]
[363807139,1748879445501,-420.0,0.0002,2]
[363807140,1748879445511,-420.0,0.0002,2]
[363807141,1748879445520,-1390.76,0.0002,2]
[363807142,1748879445530,-420.0,0.0002,2]
[363807143,1748879445540,-8169.15590365,0.0002,2]
[363807144,1748879445578,-18915.43583848,0.0002,2]
[363807163,1748879446428,-354.01,0.000195,2]
[363807164,1748879446439,-212.69983967,0.0002,2]
[363807172,1748879529226,500.0,0.00023,30]
[363807173,1748879541732,150.0,0.00023,30]
[363807175,1748879633968,5464.26,0.0001879,2]
[363807177,1748879643255,1852.42,0.0001879,2]
[363807180,1748879651385,619.0,0.00023,30]
[363807192,1748879702389,183.24,0.00016712,2]
[363807193,1748879719388,1000.0,0.0001873,2]
[363807194,1748879748442,2516.31,0.00018714,2]
[363807195,1748879756352,321.51,0.00018714,2]
[363807196,1748879765172,150.0,0.00023,30]
[363807197,1748879792165,150.0,0.00018695,2]
[363807201,1748879892226,150.0,0.00023,30]
[363807202,1748879895528,150.0,0.00023,30]
[363807203,1748879961307,593.0,0.00023,30]
[363807204,1748879968241,150.0,0.00023,30]
[363807205,1748880011801,202.0,0.00018975,2]
[363807208,1748880093818,176.06,0.0001856,2]
[363807209,1748880096401,848.05,0.0001856,2]
[363807210,1748880133231,150.0,0.00023,30]
[363807212,1748880190117,252.90777264,0.00023,30]
[363807213,1748880201061,670.73,0.00016599,2]
[363807214,1748880201270,670.73,0.00018863,2]
[363807217,1748880280715,250.0,0.00018518,2]
[363807218,1748880295927,10000.0,0.00019001,2]
[363807219,1748880310375,28172.0,0.00018523,2]
[363807220,1748880311859,200.0,0.00018523,2]
[363807221,1748880314291,568.0,0.00023,30]
[363807222,1748880316276,10000.0,0.00019001,2]
[363807223,1748880328457,10000.0,0.00019001,2]
[363807225,1748880339739,167.46,0.00018549,2]
[363807226,1748880348846,5658.0,0.00019001,2]
[363807227,1748880365386,1000.0,0.00018695,2]
[363807228,1748880369562,230.0,0.00023,30]
[363807231,1748880455158,666.115549,0.00018965,2]
[363807234,1748880523875,150.0,0.00025,120]
[363807235,1748880537303,23900.0,0.00018533,2]
[363807245,1748880566863,567.60203135,0.00019001,2]
[363807248,1748880570314,283.80101568,0.00019001,2]
[363807250,1748880571138,283.80101568,0.00019001,2]
[363807258,1748880619919,545.0,0.00023,30]
[363807263,1748880632317,-380.29259478,0.00019051,2]
[363807264,1748880632328,-400.0,0.00019056,2]
[363807265,1748880632338,-391.4168321,0.00019061,2]
[363807266,1748880632414,-494.7570679,0.00019061,2]
[363807267,1748880632424,-60.28680173,0.00019079,2]
[363807268,1748880632437,-339.71319827,0.00019079,2]
[363807269,1748880632447,-500.0,0.00019119,2]
[363807270,1748880632457,-1200.0,0.00019164,2]
[363807271,1748880632467,-300.0,0.00019165,2]
[363807272,1748880632476,-450.0,0.00019165,2]
[363807273,1748880632486,-151.0,0.00019166,2]
[363807274,1748880632495,-1957.856,0.00019166,2]
[363807275,1748880632505,-1115.157653,0.00019166,2]
[363807276,1748880632514,-191.06867897,0.00019166,2]
[363807277,1748880632526,-477.5831786,0.00019166,2]
[363807278,1748880632536,-209.49402635,0.00019166,2]
[363807279,1748880632545,-207.4,0.00019166,2]
[363807280,1748880632555,-300.0,0.00019166,2]
[363807281,1748880632565,-300.0,0.00019166,2]
[363807282,1748880632574,-300.0,0.00019166,2]
[363807283,1748880632584,-300.0,0.00019166,2]
[363807284,1748880632594,-300.0,0.00019166,2]
[363807285,1748880632603,-300.0,0.00019166,2]
[363807286,1748880632613,-140.76763225,0.00019166,2]
[363807287,1748880632636,-59.23236775,0.00019166,2]
[363807288,1748880632648,-420.0,0.00019178,2]
[363807289,1748880632658,-135.73763225,0.00019178,2]
[363807290,1748880632670,-284.26236775,0.00019178,2]
[363807291,1748880632679,-336.58,0.00019178,2]
[363807292,1748880632688,-489.1,0.00019178,2]
[363807293,1748880632698,-420.0,0.00019178,2]
[363807294,1748880632707,-1659.13,0.00019178,2]
[363807295,1748880632717,-543.82,0.00019178,2]
[363807296,1748880632727,-420.0,0.00019178,2]
[363807297,1748880632737,-448.09,0.00019178,2]
[363807299,1748880632747,-362.15,0.00019178,2]
[363807301,1748880632756,-420.0,0.00019178,2]
[363807303,1748880632766,-684.36,0.00019178,2]
[363807305,1748880632775,-420.0,0.00019178,2]
[363807307,1748880632784,-420.0,0.00019178,2]
[363807309,1748880632794,-985.12,0.00019178,2]
[363807311,1748880632803,-420.0,0.00019178,2]
[363807313,1748880632812,-420.0,0.00019178,2]
[363807315,1748880632822,-274.98,0.00019178,2]
[363807317,1748880632831,-420.0,0.00019178,2]
[363807319,1748880632841,-420.0,0.00019178,2]
[363807321,1748880632851,-420.0,0.00019178,2]
[363807323,1748880632860,-420.0,0.00019178,2]
[363807325,1748880632870,-420.0,0.00019178,2]
[363807327,1748880632880,-420.0,0.00019178,2]
[363807329,1748880632889,-420.0,0.00019178,2]
[363807331,1748880632900,-420.0,0.00019178,2]
[363807333,1748880632909,-420.0,0.00019178,2]
[363807335,1748880632919,-420.0,0.00019178,2]
[363807337,1748880632929,-3614.45,0.00019178,2]
[363807338,1748880632938,-420.0,0.00019178,2]
[363807340,1748880632947,-420.0,0.00019178,2]
[363807342,1748880632956,-420.0,0.00019178,2]
[363807344,1748880632966,-420.0,0.00019178,2]
[363807346,1748880632975,-420.0,0.00019178,2]
[363807348,1748880632985,-420.0,0.00019178,2]
[363807350,1748880632995,-420.0,0.00019178,2]
[363807353,1748880633008,-443.06,0.00019178,2]
[363807355,1748880633019,-420.0,0.00019178,2]
[363807357,1748880633029,-420.0,0.00019178,2]
[363807359,1748880633038,-706.21,0.00019178,2]
[363807361,1748880633048,-420.0,0.00019178,2]
[363807363,1748880633058,-420.0,0.00019178,2]
[363807365,1748880633067,-450.0,0.00019178,2]
[363807367,1748880633077,-420.0,0.00019178,2]
[363807369,1748880633086,-926.08,0.00019178,2]
[363807370,1748880633096,-513.75,0.00019178,2]
[363807372,1748880633106,-420.0,0.00019178,2]
[363807375,1748880633117,-689.97,0.00019178,2]
[363807377,1748880633127,-309.42,0.00019178,2]
[363807379,1748880633137,-587.41,0.00019178,2]
[363807381,1748880633147,-420.0,0.00019178,2]
[363807382,1748880633157,-420.0,0.00019178,2]
[363807385,1748880633167,-420.0,0.00019178,2]
[363807386,1748880633177,-799.3,0.00019178,2]
[363807389,1748880633188,-420.0,0.00019178,2]
[363807391,1748880633199,-420.0,0.00019178,2]
[363807393,1748880633209,-515.9,0.00019178,2]
[363807395,1748880633219,-501.5,0.00019178,2]
[363807397,1748880633230,-420.0,0.00019178,2]
[363807398,1748880633239,-420.0,0.00019178,2]
[363807400,1748880633249,-420.0,0.00019178,2]
[363807402,1748880633259,-366.83,0.00019178,2]
[363807404,1748880633269,-428.2,0.00019178,2]
[363807407,1748880633279,-420.0,0.00019178,2]
[363807408,1748880633288,-179.69496851,0.00019178,2]
[363807411,1748880633298,-420.0,0.00019178,2]
[363807412,1748880633308,-538.14,0.00019178,2]
[363807414,1748880633318,-420.0,0.00019178,2]
[363807416,1748880633327,-958.23,0.00019178,2]
[363807418,1748880633336,-420.0,0.00019178,2]
[363807420,1748880633346,-420.0,0.00019178,2]
[363807422,1748880633356,-420.0,0.00019178,2]
[363807424,1748880633369,-420.0,0.00019178,2]
[363807426,1748880633379,-420.0,0.00019178,2]
[363807428,1748880633389,-420.0,0.00019178,2]
[363807430,1748880633399,-156.58700001,0.00019178,2]
[363807432,1748880633408,-2030.296672,0.00019221,2]
[363807434,1748880633419,-151.0,0.00019231,2]
[363807436,1748880633428,-151.0,0.00019231,2]
[363807438,1748880633437,-151.0,0.00019231,2]
[363807440,1748880633450,-151.0,0.00019232,2]
[363807442,1748880633461,-4195.22588359,0.00019249,2]
[363807444,1748880633471,-937.37901215,0.00019276,2]
[363807447,1748880633482,-167.48,0.00019279,2]
[363807449,1748880633492,-1000.0,0.0001928,2]
[363807450,1748880633502,-420.0,0.00019315,2]
[363807452,1748880633512,-224.18755437,0.00019315,2]
[363807454,1748880633521,-420.0,0.00019315,2]
[363807456,1748880633531,-1659.13,0.00019315,2]
[363807475,1748880633749,-543.82,0.00019315,2]
[363807476,1748880633763,-420.0,0.00019315,2]
[363807477,1748880633774,-448.09,0.00019315,2]
[363807478,1748880633785,-420.0,0.00019315,2]
[363807479,1748880633797,-684.36,0.00019315,2]
[363807480,1748880633807,-420.0,0.00019315,2]
[363807481,1748880633817,-420.0,0.00019315,2]
[363807482,1748880633829,-985.12,0.00019315,2]
[363807483,1748880633838,-420.0,0.00019315,2]
[363807484,1748880633851,-420.0,0.00019315,2]
[363807485,1748880633861,-420.0,0.00019315,2]
[363807486,1748880633872,-420.0,0.00019315,2]
[363807487,1748880633882,-224.97,0.00019315,2]
[363807488,1748880633892,-304.2,0.00019315,2]
[363807489,1748880633903,-420.0,0.00019315,2]
[363807490,1748880633912,-420.0,0.00019315,2]
[363807491,1748880633924,-3614.45,0.00019315,2]
[363807492,1748880633936,-420.0,0.00019315,2]
[363807493,1748880633946,-420.0,0.00019315,2]
[363807494,1748880633957,-420.0,0.00019315,2]
[363807495,1748880633967,-420.0,0.00019315,2]
[363807496,1748880633977,-420.0,0.00019315,2]
[363807497,1748880633988,-420.0,0.00019315,2]
[363807498,1748880633998,-420.0,0.00019315,2]
[363807499,1748880634008,-420.0,0.00019315,2]
[363807500,1748880634018,-420.0,0.00019315,2]
[363807501,1748880634028,-706.21,0.00019315,2]
[363807502,1748880634039,-420.0,0.00019315,2]
[363807503,1748880634050,-926.08,0.00019315,2]
[363807504,1748880634060,-420.0,0.00019315,2]
[363807505,1748880634070,-689.97,0.00019315,2]
[363807506,1748880634080,-587.41,0.00019315,2]
[363807507,1748880634090,-420.0,0.00019315,2]
[363807508,1748880634099,-799.3,0.00019315,2]
[363807509,1748880634108,-420.0,0.00019315,2]
[363807510,1748880634119,-501.5,0.00019315,2]
[363807511,1748880634129,-420.0,0.00019315,2]
[363807512,1748880634139,-420.0,0.00019315,2]
[363807513,1748880634150,-420.0,0.00019315,2]
[363807514,1748880634161,-529.0180263,0.00019315,2]
[363807515,1748880634171,-538.14,0.00019315,2]
[363807516,1748880634181,-958.23,0.00019315,2]
[363807517,1748880634191,-420.0,0.00019315,2]
[363807518,1748880634200,-420.0,0.00019315,2]
[363807519,1748880634210,-420.0,0.00019315,2]
[363807520,1748880634219,-420.0,0.00019315,2]
[363807521,1748880634229,-420.0,0.00019452,2]
[363807522,1748880634239,-378.28583153,0.00019452,2]
[363807523,1748880634249,-1659.13,0.00019452,2]
[363807524,1748880634259,-543.82,0.00019452,2]
[363807525,1748880634269,-420.0,0.00019452,2]
[363807526,1748880634279,-448.09,0.00019452,2]
[363807527,1748880634289,-420.0,0.00019452,2]
[363807528,1748880634299,-684.36,0.00019452,2]
[363807529,1748880634310,-420.0,0.00019452,2]
[363807530,1748880634320,-165.14,0.00019452,2]
[363807531,1748880634330,-985.12,0.00019452,2]
[363807532,1748880634339,-420.0,0.00019452,2]
[363807533,1748880634349,-420.0,0.00019452,2]
[363807534,1748880634359,-420.0,0.00019452,2]
[363807535,1748880634373,-420.0,0.00019452,2]